Cogmind - Beta 13 *** ADVENTURER MODE // 2024.07.05 @ 23:31:10 Player: Navi Result: Self-destructed Performance ------------- Evolutions (0) 0 Regions Visited (4) 800 Robots Destroyed (8) 40 Value Destroyed (195) 195 Prototype IDs (23) 460 Alien Tech Used (0) 0 Bonus (325) 325 TOTAL SCORE: 1820 Bonus ------- Follower Combat Kills 25 Aligned with FarCom 300 Cogmind --------- Core Integrity 226/250 Matter 300/300 Energy 160/160 System Corruption 0% Temperature Cool (0) Movement Rolling (115) Ox1 Location -9/Mines Parts ------- > --- POWER (1) -------- Light Nuclear Core > --- PROPULSION (2) --- Compact Wheel Compact Wheel > --- UTILITY (2) ------ High-capacity Storage Unit PSU Rigger > --- WEAPON (2) ------- Small Laser Light Cannon > --- INVENTORY (20) --- Light Ion Engine Light Treads Light Treads Heat Sink Heat Sink Small Storage Unit Large Storage Unit Small Matter Pod (50) Targeting Computer Assault Rifle Grenade Launcher Peak State ------------ > --- POWER ------------ Light Nuclear Core > --- PROPULSION ------- Compact Wheel Compact Wheel > --- UTILITY ---------- High-capacity Storage Unit PSU Rigger > --- WEAPON ----------- Small Laser Grenade Launcher > --- INVENTORY -------- Light Ion Engine Light Treads Light Treads Heat Sink Small Storage Unit Large Storage Unit Small Matter Pod Targeting Computer Assault Rifle Light Cannon [Rating: 17] Favorites ----------- Power Light Nuclear Core Engine Light Ion Engine Power Core Light Nuclear Core Propulsion Compact Wheel Treads Light Treads Wheel Compact Wheel Utility High-capacity Storage Unit Device PSU Rigger Storage High-capacity Storage Unit Weapon Small Laser Energy Gun Small Laser Ballistic Gun Light Assault Rifle Ballistic Cannon Light Cannon Launcher Grenade Launcher Build | -11 -10 -10 -10 -9 ------- Run | Yrd Mat Min Exi Min Slots Evolved . | . . . . . Power . | . . . . . Propulsion . | . . . . . Utility . | . . . . . Weapon . | . . . . . Parts Attached 17 | 7 7 1 1 1 Power 2 | 1 1 . . . Engine 1 | 1 . . . . Core 1 | . 1 . . . Reactor . | . . . . . Propulsion 4 | 4 . . . . Treads 2 | 2 . . . . Leg . | . . . . . Wheel 2 | 2 . . . . Hover . | . . . . . Flight . | . . . . . Utility 4 | 1 2 . 1 . Device 1 | . . . 1 . Storage 3 | 1 2 . . . Processor . | . . . . . Hackware . | . . . . . Protection . | . . . . . Artifact . | . . . . . Weapon 7 | 1 4 1 . 1 Energy Gun 1 | . 1 . . . Energy Cannon . | . . . . . Ballistic Gun 2 | 1 1 . . . Ballistic Cannon 2 | . 1 . . 1 Launcher 2 | . 1 1 . . Special Weapon . | . . . . . Impact Weapon . | . . . . . Slashing Weapon . | . . . . . Piercing Weapon . | . . . . . Special Melee Weapon . | . . . . . Unidentified Prototypes 1 | . . . 1 . Parts Lost . | . . . . . Power . | . . . . . Propulsion . | . . . . . Utility . | . . . . . Weapon . | . . . . . Highest Loss Streak . | . . . . . To Critical Strikes . | . . . . . Average Slot Usage (%) 89 | . 82 85 88 100 Engine 1 | . 8 . . . Core 12 | . 5 14 14 14 Wheel 28 | . 28 28 28 28 Device 4 | . . . 3 14 Storage 14 | . 14 14 14 14 Energy Gun 12 | . 4 14 14 14 Ballistic Cannon 2 | . 11 2 . 8 Launcher 11 | . 7 12 14 5 Naked Turns . | . . . . . Heaviest Build 51 | 9 49 49 51 51 Greatest Support 40 | 40 32 32 32 32 Greatest Overweight (x) 1 | 1 1 1 1 1 Average Overweight (x) . | . . 1 1 1 Largest Inventory Capacity 20 | 8 20 20 20 20 Average Capacity 17 | 7 14 20 20 20 Most Carried 11 | 5 8 9 10 11 Average Carried 8 | 4 7 8 9 10 Final Capacity 20 | 8 20 20 20 20 Final Carried 11 | 5 8 9 10 11 Class Distribution -------------------- 100% | Mutant Dominant Class ---------------- Mutant | -10/Materials Mutant | -10/Mines Mutant | -10/Exiles Mutant | -9/Mines Resources | -11 -10 -10 -10 -9 ----------- Run | Yrd Mat Min Exi Min Matter Collected 570 | 170 42 74 246 38 Remotely . | . . . . . Salvage Created 143 | . 99 . . 44 Parts 10 | . 10 . . . Haulers Intercepted . | . . . . . Recyclers Shooed 1 | . 1 . . . Parts Field Recycled . | . . . . . Retrieved Matter . | . . . . . Parts Self-Destructed . | . . . . . Prevented . | . . . . . Kills | -11 -10 -10 -10 -9 ------- Run | Yrd Mat Min Exi Min Combat Hostiles Destroyed 6 | . 5 . . 1 Cannons 1 | . . . . 1 AOE 5 | . 5 . . . Classes Destroyed 4 | . 4 . . . Worker 1 | . 1 . . . Recycler 1 | . 1 . . . Swarmer 3 | . 3 . . . Grunt 3 | . 2 . . 1 Best Kill Streak 4 | . 4 . . 1 Combat Bots Only 3 | . 3 . . 1 Max Kills in Single Turn 2 | . 2 . . 1 Gunslinging . | . . . . . Exploded 1 | . 1 . . . Melee . | . . . . . Uniques/NPCs Destroyed . | . . . . . Combat | -11 -10 -10 -10 -9 -------- Run | Yrd Mat Min Exi Min Hostile Shots Fired 21 | . 18 . . 3 Missed 8 | . 6 . . 2 Damage Taken 132 | . 124 . . 8 Core 24 | . 24 . . . Absorbed by Shields . | . . . . . Ignored by Resistances 42 | . 40 . . 2 Core Remaining (%) 100 | 100 . . . . Volleys Fired 14 | . 9 1 . 4 Largest 2 | . 2 2 . 2 Hottest 75 | . 65 70 . 75 Shots Fired 26 | . 16 2 . 8 Gun 5 | . . 1 . 4 Cannon 10 | . 8 . . 2 Launcher 11 | . 8 1 . 2 Special . | . . . . . Kinetic 10 | . 8 . . 2 Thermal 5 | . . 1 . 4 Explosive 11 | . 8 1 . 2 Electromagnetic . | . . . . . Robot Hit Streak 6 | . 4 6 . 3 Robot Miss Streak 2 | . 2 . . 1 Penetration Max . | . . . . . Secondary Targets . | . . . . . Shots Hit Robots 17 | . 9 2 . 6 Core Hits 19 | . 12 3 . 4 Critical Kills . | . . . . . Critical Parts Destroyed . | . . . . . Critical Strikes . | . . . . . Melee Attacks . | . . . . . Impact . | . . . . . Slashing . | . . . . . Piercing . | . . . . . Sneak Attacks . | . . . . . Combat Hostiles . | . . . . . Follow-up Attacks . | . . . . . Damage Inflicted 917 | . 735 27 . 155 Guns 33 | . . 11 . 22 Cannons 120 | . 89 . . 31 Explosions 764 | . 646 16 . 102 Melee . | . . . . . Ramming . | . . . . . Kinetic 120 | . 89 . . 31 Thermal 33 | . . 11 . 22 Explosive 764 | . 646 16 . 102 Electromagnetic . | . . . . . Impact . | . . . . . Slashing . | . . . . . Piercing . | . . . . . Highest Corruption . | . . . . . Average Corruption . | . . . . . Corruption Purged . | . . . . . Corruption Blocked . | . . . . . Overload Shots . | . . . . . Overflow Damage 20 | . 20 . . . Projectiles 7 | . 7 . . . Explosions 13 | . 13 . . . Melee . | . . . . . Knockbacks 1 | . 1 . . . Impact . | . . . . . Kinetic 1 | . 1 . . . Secondary . | . . . . . Self-Inflicted Damage 50 | . 50 . . . Shots 4 | . 4 . . . Rammed . | . . . . . Targets Rammed . | . . . . . Kicked . | . . . . . Crushed . | . . . . . Highest Temperature 42 | . 24 15 . 42 Average Temperature 13 | . 8 10 . 22 Received Heat Transfer 21 | . 15 . . 6 Siege Activations . | . . . . . Robots Corrupted . | . . . . . Combat Hostiles . | . . . . . Parts Fried . | . . . . . Impact Corruptions . | . . . . . Robots Melted . | . . . . . Combat Hostiles . | . . . . . Parts Melted . | . . . . . Heat Transferred 75 | . . 25 . 50 Parts Sabotaged . | . . . . . Parts Stolen . | . . . . . Parts Stripped . | . . . . . Power Chain Reactions . | . . . . . Alert | -11 -10 -10 -10 -9 ------- Run | Yrd Mat Min Exi Min Peak Influence 208 | . 208 73 . 69 Initial 68 | . . 68 . . Average 56 | . 129 72 . 41 Maximum Alert Level 1 | . 1 . . . Low Security (%) 87 | 100 54 100 . 100 Level 1 12 | . 45 . . . Level 2 . | . . . . . Level 3 . | . . . . . Level 4 . | . . . . . Level 5 . | . . . . . High Security . | . . . . . Max Security . | . . . . . Squads Dispatched . | . . . . . Investigation . | . . . . . Extermination . | . . . . . Reinforcement . | . . . . . Assault . | . . . . . Garrison . | . . . . . Intercept . | . . . . . Searches Triggered . | . . . . . Construction Impeded . | . . . . . Haulers Reinforced . | . . . . . Active Scanning Responses . | . . . . . Cargo Convoy Interrupts . | . . . . . Stealth | -11 -10 -10 -10 -9 --------- Run | Yrd Mat Min Exi Min Distress Signals . | . . . . . Communications Jammed . | . . . . . Distress Signals . | . . . . . Times Spotted 24 | . 5 17 . 2 Peak Tracking Total 18 | . 3 18 . 2 Tactical Retreats . | . . . . . Traps | -11 -10 -10 -10 -9 ------- Run | Yrd Mat Min Exi Min Traps Triggered . | . . . . . Indirectly . | . . . . . Trap Hack Attempts . | . . . . . Triggered . | . . . . . Disarmed . | . . . . . Reprogrammed . | . . . . . Reused . | . . . . . Traps Extracted . | . . . . . Installed . | . . . . . Triggered . | . . . . . Machines | -11 -10 -10 -10 -9 ---------- Run | Yrd Mat Min Exi Min Machines Disabled 3 | . 3 . . . Max in Single Turn 1 | . 1 . . . Machines Repaired . | . . . . . Machines Dismantled . | . . . . . Machines Sabotaged . | . . . . . Overloaded Fab Kills . | . . . . . Hacking | -11 -10 -10 -10 -9 --------- Run | Yrd Mat Min Exi Min Machines Accessed 5 | . 1 . 4 . Terminals 1 | . 1 . . . Fabricators . | . . . . . Repair Stations . | . . . . . Recycling Units . | . . . . . Scanalyzers . | . . . . . Garrison Access . | . . . . . Total Hacks 46 | . 3 . 43 . Successful 44 | . 1 . 43 . Failed 2 | . 2 . . . Catastrophic 1 | . 1 . . . Database Lockouts . | . . . . . Manual 1 | . . . 1 . Terminals 3 | . 3 . . . Fabricators . | . . . . . Repair Stations . | . . . . . Recycling Units . | . . . . . Scanalyzers . | . . . . . Garrison Access . | . . . . . Terminal Hacks 44 | . 1 . 43 . Record 43 | . 1 . 42 . Derelict Proto ID Bank 1 | . . . 1 . Fabricator Hacks . | . . . . . Repair Station Hacks . | . . . . . Recycling Unit Hacks . | . . . . . Scanalyzer . | . . . . . Garrison Access Hacks . | . . . . . Unauthorized Hacks . | . . . . . Terminals . | . . . . . Fabricators . | . . . . . Repair Stations . | . . . . . Recycling Units . | . . . . . Scanalyzers . | . . . . . Garrison Access . | . . . . . Data Cores Recovered . | . . . . . Used . | . . . . . Hacking Detections 1 | . 1 . . . Full Trace Events . | . . . . . Feedback Events . | . . . . . Feedback Blocked . | . . . . . Robot Schematics Acquired . | . . . . . Robots Built . | . . . . . Authchips . | . . . . . Time . | . . . . . Total Robot Build Rating . | . . . . . Part Schematics Acquired . | . . . . . Parts Built . | . . . . . Authchips . | . . . . . Time . | . . . . . Total Part Build Rating . | . . . . . Parts Repaired . | . . . . . Time . | . . . . . Parts Recycled . | . . . . . Recycled Matter . | . . . . . Retrieved Matter . | . . . . . Retrieved Components . | . . . . . Parts Scanalyzed . | . . . . . Part Schematics Acquired . | . . . . . Parts Damaged . | . . . . . Bothacking | -11 -10 -10 -10 -9 ------------ Run | Yrd Mat Min Exi Min Used RIF Installer . | . . . . . Robots Hacked . | . . . . . Non-combat . | . . . . . Combat . | . . . . . Robot Hacks Applied . | . . . . . Relay Couplers Released . | . . . . . Fabnet Peak Effective % . | . . . . . Robots Rewired . | . . . . . Allies Hacked . | . . . . . Hacks Repelled . | . . . . . Allies | -11 -10 -10 -10 -9 -------- Run | Yrd Mat Min Exi Min Total Allies 3 | . . . . 3 Largest Group 3 | . . . . 3 Highest-Rated Group 40 | . . . . 40 Highest-Rated Ally 16 | . . . . 16 Total Orders 1 | . . . . 1 GUARD 1 | . . . . 1 Ally Attacks 3 | . . . . 3 Total Damage 29 | . . . . 29 Kills 1 | . . . . 1 Allies Corrupted . | . . . . . Allies Melted . | . . . . . Intel | -11 -10 -10 -10 -9 ------- Run | Yrd Mat Min Exi Min Robot Analysis Total . | . . . . . Derelict Logs Recovered . | . . . . . Drone Launches . | . . . . . Drone Recoveries . | . . . . . Exploration | -11 -10 -10 -10 -9 ------------- Run | Yrd Mat Min Exi Min Turns Passed 1526 | 208 185 68 873 192 Spaces Moved 1196 | 92 139 55 756 154 Core 35 | 35 . . . . Treads 42 | 42 . . . . Legs . | . . . . . Wheels 1119 | 15 139 55 756 154 Hover . | . . . . . Flight . | . . . . . Fastest Speed 50 | 50 100 115 115 115 Average Speed 113 | 118 102 115 115 115 Slowest Speed 160 | 160 115 115 115 115 Overloaded Moves . | . . . . . Propulsion Burnouts . | . . . . . Robots Hopped . | . . . . . Cave-ins Triggered . | . . . . . Exploration Rate (%) 35 | 7 29 19 93 29 Regions Visited 4 Branch Regions 3 Pre-discovered Areas 1 | . . . 1 . Known Exits Taken . | . . . . . Unknown Exits Taken 4 | 1 1 1 1 . Scrap Searched . | . . . . . Spaces Dug 5 | . 5 . . . Terrain Destroyed 100 | . 69 6 . 25 Melee . | . . . . . Projectile . | . . . . . AOE 100 | . 69 6 . 25 Terrain Rammed . | . . . . . Walls Destroyed . | . . . . . Machines Disabled . | . . . . . Actions | -11 -10 -10 -10 -9 --------- Run | Yrd Mat Min Exi Min Total 1330 | 190 164 57 759 160 Wait 82 | 82 . . . . Move 1192 | 91 138 54 755 154 Hop . | . . . . . Pick Up 21 | 10 7 1 2 1 Fast Attach . | . . . . . Attach 8 | 5 2 . 1 . Detach . | . . . . . Swap 9 | 2 5 1 . 1 Drop 3 | . 3 . . . Fire 14 | . 9 1 . 4 Melee . | . . . . . Ram . | . . . . . Kick . | . . . . . Crush . | . . . . . Escape Stasis . | . . . . . Rewire 1 | . . . 1 . Trap . | . . . . . Miscellaneous . | . . . . . Route ------- -11/Scrapyard -10/Materials -10/Mines (discovered 2 exits: [*Mat] / *Exi) -10/Exiles (discovered 2 exits: [*Min x2]) -9/Mines History --------- Turn | Location | Event 21 | -11/Scrapyard | Discovered new exit (range 16) 209 | -11/Scrapyard | Entered Materials 305 | -10/Materials | Build established: Mutant 345 | -10/Materials | Discovered new exit (range 11) 394 | -10/Materials | Entered Mines 395 | -10/Mines | Assembled infested the area 414 | -10/Mines | Met 8R-AWN 421 | -10/Mines | Discovered new exit (range 12) 457 | -10/Mines | Discovered new exit (range 5) 462 | -10/Mines | Entered Exiles 484 | -10/Exiles | Discovered new exit (range 14) 507 | -10/Exiles | Welcomed by 8R-AWN 525 | -10/Exiles | Met EX-HEX 564 | -10/Exiles | Met EX-BIN 580 | -10/Exiles | Aligned with FarCom system 581 | -10/Exiles | Given EX-Vault access code 675 | -10/Exiles | Met EX-DEC 716 | -10/Exiles | Visited The Gauntlet 1120 | -10/Exiles | Opened EX-Vault 1125 | -10/Exiles | Found Prototype Device 1126 | -10/Exiles | Identified PSU Rigger 1159 | -10/Exiles | Warned to stay clear of 0b10 Research branches 1223 | -10/Exiles | Learned location of Zion (-7) 1306 | -10/Exiles | Discovered new exit (range 14) 1335 | -10/Exiles | Left Exiles lab with PSU Rigger 1335 | -10/Exiles | Entered Mines 1356 | -9/Mines | Assisted by bots powering up and referring to "LRC-V3" 1527 | -9/Mines | Self-destructed Last Messages --------------- 01269_ Extracted 50 matter. 01270_ Acquired Sml. Matter Pod. 01271_ Extracted 50 matter. 01277_ Extracted 96 matter. 01306_ EXIT=FOUND LOCATION=UNKNOWN GOAL=ESCAPE 01335_ Receiving FarCom transmissions... 01356_ Trooper 2a: "Hello LRC-V3. What is your command?" 01356_ Mercenary 2a: "Hello LRC-V3. What is your command?" 01356_ Trooper 2b: "Hello LRC-V3. What is your command?" 01382_ K-01 Serf collects debris. 01406_ G-34 Mercenary destroyed. 01413_ Acquired 21 matter. 01415_ Acquired Heat Sink. 01422_ G-47 Trooper destroyed. 01430_ The unstable cave ceiling collapses. 01432_ Acquired 17 matter. 01474_ T-07 Excavator is excavating. Map ----- +----------------------------------------------------+ | ?????????????????????????????????????? | | ?????????????????????????????????????? | | ?????????????????????????????????????? | | ?????????????????????????????????????? | | ?????????????????????????????????????? | | ?????????????????????????????????????? | | ?????????????????????????????????????? | | ?????????????????????????????????????? | | ?????????????????????????????????????? | | ?????????????????????????????????????? | | ?????????????????????????????????????? | | ?????????????????????????????????????? | | ?????????????????????????????????????? | | ?????????????????????????????????????? | | ?????????????????????????????????????? | | ?????????????????????????????????????? | | ?????????????????????????##??????????? | | ????????????????????????# ??????????? | | ????????????????????????# #??????????? | | ????????????????????????# #??????????? | | ????????????????????????# #??????????? | | ????????????????????????# #?#######??? | | ??????????????gg???????? ### ##?? | | ????????????????????????# ## ##? | | ????????????????????????# ## #? | | ????????????????????????#@### #? | | ????????????????????????#g#?# #?? | | ???????????????????######g### ##?? | | ???????????????????# g ##??? | | ???????????????????# ####### ##???? | | ???????????????????????##### #????? | | ???????????????????????# ##????? | | ???????????????###?????# ## #?????? | | ???????????????# ?????# ### #????? | | ???????????????# #?????# #?## #???? | | ???????????????# #?????# #??## #??? | | ???????????????# #?????# #????# ##??? | | ##?????????????# ##????# #?????###???? | | #?????????????#$ ###### ####????????? | | #?????????????# #????????? | | #????????????## ######## #????????? | | #???????###### ##???????#????????? | | #??????## #????????????????? | | #???#### ## #????????????????? | | ##### #### #????????????????? | | ## #?? #???????????????? | | #?? #???????????????? | | ##??#####???????????????? | | ## ######???????????????????????? | | ?## ###????????????????????????????? | +----------------------------------------------------+ Best States ------------- Heat Dissipation 25 Energy Generation 14 Energy Capacity 160 Matter Stores 300 Matter Capacity 300 Sight Range 16 Terrain Scan Density 10 Resistance: KI 20 Resistance: TH 20 Resistance: EX 20 Resistance: EM 20 Resistance: I 20 Resistance: S 20 Resistance: P 20 Evasion (%) 50 Recoil Reduction 2 Offensive Hacking 10 Item Schematics ----------------- None Robot Schematics ------------------ None Fabricated ------------ Nothing Alien Tech Used ----------------- None Achievements -------------- I Survived The Infestation Librarian Slippery One Challenges ------------ None Game ------ Seed DerelictSupersonicBox Manual? 0 Play Time 00:34:13 Cumulative 2.6 hours Start 2024.07.05 @ 18:43:01 End 2024.07.05 @ 23:31:10 Sessions 3 Manual Loads 0 Difficulty Adventurer Special Mode None Game No. 5 Rogue 2 Adventurer 3 Explorer 0 Win Type - Total 0 Types 0/0/0/0/0/0/0/0/0 Lore% 8 Gallery% 8 Achievement% 7 Wizard Run 0 Options --------- Layout 0 ASCII 0 Keyboard 0 Movement Arrows Keybinds 0 Fullscreen 2 Font 18/SmallcapsGlow Map View 76x50 Zoom Use 0% Tactical HUD 1 Map Filters NONE Filters NONE Steam 1 RUN: bd6d0b67-67c2-4b2e-8010-e535d990b5b6